bitfinex/quotes_ETHUSD_20220119
["timestamp","ask_amount","ask_price","bid_price","bid_amount"]
[1642566017609,1.61072425,3107.1,3106.8,4.53969442]
[1642566017810,0.80591425,3107.1,3106.9,2.73509672]
[1642566018455,0.80591425,3107.1,3107.0,5.83509672]
[1642566020063,0.00113685,3107.1,3107.0,5.83509672]
[1642566021081,0.00113685,3107.1,3107.0,8.75449471]
[1642566021365,4.76308,3107.8,3107.0,8.75449471]
[1642566021366,3.9584,3107.8,3107.1,6.4522737]
[1642566021566,1.60935,3108.1,3107.2,5.92757068]
[1642566021769,1.175,3108.7,3107.3,2.73509672]
[1642566021770,3.6619,3108.7,3107.3,2.73509672]
[1642566022010,3.6619,3108.7,3107.6,1.37511941]
[1642566022011,1.38638146,3108.3,3107.6,1.37511941]
[1642566022215,1.38638146,3108.3,3107.7,2.73509672]
[1642566022603,0.00738951,3108.4,3107.8,1.0]
[1642566022808,0.00738951,3108.4,3107.9,2.73509672]
[1642566023109,6.59376,3109.6,3107.9,2.73509672]
[1642566023110,0.00682108,3108.3,3108.0,3.70487]
[1642566023309,0.00682108,3108.3,3108.1,2.73509672]
[1642566023517,1.60863,3109.5,3108.3,0.3]
[1642566023709,1.20156277,3109.0,3108.4,4.93959917]
[1642566023910,1.20156277,3109.0,3108.5,2.73509672]
[1642566024109,1.20156277,3109.0,3108.6,2.02882562]
[1642566024408,1.20156277,3109.0,3108.7,2.73509672]
[1642566024612,0.81733374,3109.4,3108.8,1.81441326]
[1642566024812,0.81733374,3109.4,3108.6,1.9743192]
[1642566025112,0.01250532,3109.3,3108.7,2.73350909]
[1642566025512,0.01193689,3109.2,3108.7,2.73350909]
[1642566025957,1.3470683,3109.0,3108.7,2.73350909]
[1642566026359,0.01023162,3108.9,3108.6,1.9743192]
[1642566026564,1.06239992,3109.0,3108.7,6.45]
[1642566026764,1.06239992,3109.0,3108.7,6.45113684]
[1642566028765,0.01336094,3108.9,3108.7,6.45113684]
[1642566028961,1.06239992,3109.0,3108.7,6.45113684]
[1642566029815,0.8042451,3109.4,3108.7,6.45113684]
[1642566030025,0.8042451,3109.4,3108.8,5.55962394]
[1642566030219,0.0022737,3109.3,3108.9,2.89394761]
[1642566030418,0.0022737,3109.3,3109.0,2.07738515]
[1642566030616,0.00170527,3109.2,3109.1,0.3]
[1642566030820,0.00170527,3109.2,3109.1,5.3]
[1642566031021,0.00170527,3109.2,3109.1,6.3]
[1642566031219,0.00170527,3109.2,3109.1,1.0]
[1642566031622,0.96355075,3109.3,3108.8,5.55]
[1642566031820,1.15699212,3108.9,3108.7,0.00113684]
[1642566032024,1.15699212,3108.9,3108.4,2.73361071]
[1642566032025,1.45699212,3108.9,3108.4,2.73361071]
[1642566032219,0.3,3108.9,3108.4,4.60506721]
[1642566032520,0.96355075,3109.3,3108.5,4.03758967]
[1642566032720,0.96355075,3109.3,3108.6,4.7424618]
[1642566032721,1.26355075,3109.3,3108.6,4.7424618]
[1642566032920,1.26355075,3109.3,3108.6,2.01226163]
[1642566033256,1.26350624,3109.0,3108.7,0.00284211]
[1642566033658,1.26355075,3109.3,3108.7,0.00284211]
[1642566033861,0.96355075,3109.3,3108.7,0.00284211]
[1642566034066,0.96355075,3109.3,3108.7,3.03619951]
[1642566034260,0.96355075,3109.3,3108.8,4.83531321]
[1642566034460,0.96355075,3109.3,3108.9,2.7333574]
[1642566034663,7.2372615,3109.6,3109.0,2.87661906]
[1642566034861,7.2372615,3109.6,3109.0,2.8777559]
[1642566035059,0.00170527,3109.5,3109.0,0.00113684]
[1642566035263,0.00170527,3109.5,3109.1,1.0]
[1642566035461,0.00113685,3109.4,3109.0,1.81826571]
[1642566035663,0.80534645,3109.4,3109.0,1.81826571]
[1642566036261,1.13305818,3109.2,3109.0,1.81826571]
[1642566036666,0.84055818,3109.2,3109.0,1.81826571]
[1642566037110,0.80534645,3109.4,3109.0,0.00113684]
[1642566037513,0.80534645,3109.4,3108.9,0.00170527]
[1642566038815,1.4640083,3109.2,3108.9,0.00170527]
[1642566039019,2.268216,3109.2,3108.9,0.00170527]
[1642566039619,2.16324679,3109.2,3108.9,0.00170527]
[1642566040319,0.05193128,3109.1,3108.9,0.00170527]
[1642566040520,2.16324679,3109.2,3108.9,0.00170527]
[1642566041769,1.86904679,3109.2,3108.9,0.00170527]
[1642566042164,0.00113685,3109.4,3109.2,0.01409262]
[1642566042367,0.00113685,3109.4,3109.3,6.16067]
[1642566042564,0.00113685,3109.4,3109.3,6.46067]
[1642566042765,0.00113685,3109.4,3109.3,7.46067]
[1642566043764,1.2252157,3109.4,3109.3,1.46067]
[1642566044165,1.2252157,3109.4,3109.3,0.46067]
[1642566044373,1.2252157,3109.4,3109.3,0.16067]
[1642566044613,1.2252157,3109.4,3109.3,4.96067]
[1642566045014,1.2252157,3109.4,3109.3,5.96067]
[1642566046417,1.2252157,3109.4,3108.9,0.00170527]
[1642566046621,0.8043529,3109.3,3108.9,0.00170527]
[1642566046822,0.5110529,3109.3,3108.9,0.00170527]
[1642566047022,0.5110529,3109.3,3108.8,3.73554012]
[1642566047216,0.5110529,3109.3,3108.9,2.73326643]
[1642566047416,0.5110529,3109.3,3108.9,3.0349717]
[1642566047616,0.5110529,3109.3,3109.0,1.00113684]
[1642566048016,0.5110529,3109.3,3109.0,0.00113684]
[1642566048659,1.15712071,3108.9,3108.8,2.73551692]
[1642566048862,0.5110529,3109.3,3108.9,6.86424142]
[1642566049061,2.80762508,3109.1,3108.9,6.86424142]
[1642566049260,2.80762508,3109.1,3109.0,4.40113684]
[1642566049671,2.80762508,3109.1,3109.0,1.00113684]
[1642566051468,2.80762508,3109.1,3109.0,3.65113684]
[1642566051867,2.51612508,3109.1,3109.0,3.65113684]
[1642566052119,3.62046538,3109.1,3108.9,1.01424142]
[1642566053716,4.42489538,3109.1,3108.9,1.01424142]
[1642566055220,4.29489538,3109.1,3108.9,1.01424142]
[1642566056069,4.12489538,3109.1,3108.9,1.01424142]
[1642566056471,3.32046538,3109.1,3108.9,1.01424142]
[1642566056871,3.32046538,3109.1,3109.0,2.73338959]
[1642566057068,3.01976538,3109.1,3109.0,2.73338959]
[1642566057267,0.5036403,3109.1,3109.0,2.73338959]
[1642566057467,0.5036403,3109.1,3109.0,4.5797071]
[1642566057672,0.5036403,3109.1,3109.0,2.73338959]
[1642566058069,0.5036403,3109.1,3109.0,4.55753755]
[1642566058270,0.5036403,3109.1,3109.0,2.73328334]
[1642566059715,0.8041704,3109.3,3109.0,5.8384009]
[1642566059916,0.8041704,3109.3,3109.1,2.73328334]
[1642566060114,0.8041704,3109.3,3109.2,2.05372492]
[1642566060316,0.8041704,3109.3,3109.2,5.78700826]
[1642566060512,0.80587567,3109.3,3109.2,5.78700826]
[1642566060713,0.80587567,3109.3,3109.2,3.73328334]
[1642566061814,0.80587567,3109.3,3109.2,2.73328334]
[1642566062014,0.80587567,3109.3,3109.0,2.73328334]
[1642566062314,0.00113684,3109.2,3109.0,2.73328334]
[1642566062513,1.60985654,3109.2,3109.1,1.0]
[1642566062716,1.60985654,3109.2,3109.1,3.73328334]
[1642566062918,1.60985654,3109.2,3109.1,2.73328334]
[1642566063119,1.90985654,3109.2,3109.0,2.73328334]
[1642566063374,1.90985654,3109.2,3108.9,1.01424142]
[1642566063375,0.3,3109.1,3108.9,1.01424142]
[1642566063870,4.15,3109.0,3107.9,0.16067]
[1642566064068,1.42593163,3108.5,3108.0,2.7338553]
[1642566064269,1.42593163,3108.5,3108.0,2.73953954]
[1642566064469,1.42593163,3108.5,3108.1,2.7338553]
[1642566064769,1.42593163,3108.5,3108.2,0.00454739]
[1642566064968,1.42593163,3108.5,3108.3,2.7338553]
[1642566065168,1.6090818,3108.5,3108.4,1.0]
[1642566065371,1.6090818,3108.5,3108.4,3.73726584]
[1642566065574,2.4136418,3108.5,3108.4,3.73726584]
[1642566065968,1.6090818,3108.5,3108.4,3.73726584]
[1642566066172,2.7903447,3108.5,3108.4,3.73726584]
[1642566066368,2.7903447,3108.5,3108.4,2.73726584]
[1642566066568,3.0903447,3108.5,3108.4,0.00341054]
[1642566066772,3.85457,3108.4,3108.0,2.73389192]
[1642566067041,3.85457,3108.4,3107.6,1.1965]
[1642566067042,1.6093,3108.2,3108.1,0.00170527]
[1642566067226,1.10464,3108.3,3108.1,0.00170527]
[1642566067428,1.10464,3108.3,3107.7,0.00397897]
[1642566067429,0.79994,3108.3,3107.7,0.00397897]
[1642566067628,0.79994,3108.3,3107.8,0.00341055]
[1642566067629,1.44806245,3108.0,3107.8,0.00341055]
[1642566067828,2.25275245,3108.0,3107.7,0.00397897]
[1642566068028,0.80469,3108.0,3107.7,0.00397897]
[1642566068628,0.80469,3108.0,3107.6,0.00454739]
[1642566068828,1.609377,3108.0,3107.6,0.00454739]
[1642566069829,0.804687,3108.0,3107.6,0.00454739]
[1642566070029,0.804687,3108.0,3107.5,3.44740443]
[1642566070244,0.804687,3108.0,3107.5,1.81472322]
[1642566070430,0.804687,3108.0,3107.6,1.00454739]
[1642566070633,0.804687,3108.0,3107.6,0.30454739]
[1642566070866,0.804687,3108.0,3107.7,0.00397897]
[1642566071970,0.804687,3108.0,3107.6,0.00454739]
[1642566072665,0.504987,3108.0,3107.6,0.00454739]
[1642566073868,1.6090433,3108.4,3107.6,0.00454739]
[1642566074073,2.4136515,3108.9,3107.7,0.16067]
[1642566074270,3.2180615,3108.9,3107.7,0.16067]
[1642566074509,0.00227369,3108.8,3107.8,0.00341055]
[1642566074712,0.00227369,3108.8,3107.9,0.16067]
[1642566074913,0.00170527,3108.7,3107.9,0.16067]
[1642566075113,1.23550327,3108.7,3108.0,0.0022737]
[1642566075316,0.00113684,3108.6,3108.0,0.0022737]
[1642566075716,0.8044123,3108.5,3108.0,0.0022737]
[1642566075935,1.26343408,3108.2,3108.0,0.0022737]
[1642566076617,1.26343408,3108.2,3107.8,0.00341055]
[1642566076818,1.44711648,3108.1,3107.8,0.00341055]
[1642566077517,1.44711648,3108.1,3107.7,0.00397897]
[1642566077716,0.804706,3108.0,3107.7,0.00397897]
[1642566077920,3.218866,3108.0,3107.6,0.00454739]
[1642566078117,3.218866,3108.0,3107.4,0.00568424]
[1642566078118,1.22523416,3107.6,3107.4,0.00568424]
[1642566078365,1.22523416,3107.6,3107.2,0.00682109]
[1642566078565,1.6094696,3107.7,3107.2,0.00682109]
[1642566078964,0.8047348,3107.6,3107.2,0.00682109]
[1642566079769,3.93053268,3107.9,3107.2,0.00682109]
[1642566079968,1.51653508,3107.9,3107.2,1.6395023]
[1642566080172,0.8045844,3107.9,3107.3,1.86416938]
[1642566080373,0.8045844,3107.9,3107.3,3.50310325]
[1642566080570,0.3,3108.1,3107.4,0.30568424]
[1642566080772,0.3,3108.1,3107.5,2.7469281]
[1642566080972,5.17673408,3108.2,3107.5,2.75204392]
[1642566081170,0.8045316,3108.1,3107.6,1.00454739]
[1642566081376,0.8045316,3108.1,3107.6,0.00454739]
[1642566081573,3.9133,3108.2,3107.3,1.63268121]
[1642566081574,3.9133,3108.2,3107.7,0.00397897]
[1642566081776,3.9133,3108.2,3107.6,0.00454739]
[1642566082012,0.8045878,3108.0,3107.4,0.30568424]
[1642566082212,0.8045878,3108.0,3107.4,1.75488319]
[1642566082413,1.1045878,3108.0,3107.5,0.00511582]
[1642566082813,0.8119878,3108.0,3107.5,0.00511582]
[1642566083412,0.8119878,3108.0,3107.4,0.00568424]
[1642566083413,0.8046564,3107.8,3107.4,0.00568424]
[1642566084016,0.8046564,3107.8,3107.2,1.3]
[1642566084017,2.64936443,3107.8,3107.3,0.00625266]
[1642566084213,1.1046564,3107.8,3107.3,0.00625266]
[1642566084613,1.1046564,3107.8,3107.2,0.00682109]
[1642566086682,3.6133,3108.2,3107.4,1.21074004]
[1642566086880,3.9502,3109.2,3107.6,0.02941098]
[1642566086881,4.75462,3109.2,3107.6,0.02941098]
[1642566087075,1.6088396,3108.9,3107.7,0.16067]
[1642566087270,1.6088396,3108.9,3107.8,2.73405847]
[1642566087470,1.36106964,3108.6,3107.8,3.03746902]
[1642566087671,3.52922205,3108.6,3107.9,3.73690059]
[1642566087871,3.22992205,3108.6,3108.0,2.73405847]
[1642566088070,3.22992205,3108.6,3108.1,1.0]
[1642566088271,3.22992205,3108.6,3108.2,2.73405847]
[1642566088470,3.22992205,3108.6,3108.2,2.73519532]
[1642566088671,3.52992205,3108.6,3108.2,2.73519532]
[1642566089815,2.16618944,3108.6,3108.3,0.3]
[1642566090016,2.97069944,3108.6,3108.4,2.73405847]
[1642566091117,4.37721818,3108.6,3108.4,2.73405847]
[1642566091922,4.37721818,3108.6,3108.5,2.73405847]
[1642566092121,4.37721818,3108.6,3108.2,2.73519532]
[1642566092320,0.80459,3108.5,3108.3,2.73405847]
[1642566092528,0.80459,3108.5,3108.4,2.73405847]
[1642566092723,1.60918,3108.5,3108.4,2.73405847]
[1642566092921,1.60918,3108.5,3108.2,0.00113685]
[1642566092922,1.31328,3108.5,3108.2,0.00113685]
[1642566093370,4.0228847,3108.4,3108.0,2.73405847]
[1642566093574,4.0228847,3108.4,3108.1,2.73405847]
[1642566093777,4.0228847,3108.4,3108.2,2.73405847]
[1642566093977,4.0228847,3108.4,3108.2,2.73519532]
[1642566094280,4.0228847,3108.4,3108.3,2.73405847]
[1642566094477,4.0228847,3108.4,3108.2,0.00113685]
[1642566095378,4.0228847,3108.4,3107.8,0.00341055]
[1642566095778,0.80461,3108.3,3107.8,0.00341055]
[1642566095979,1.6092027,3108.2,3107.8,2.73405847]
[1642566096178,1.12592663,3108.1,3107.9,2.73405847]
[1642566096378,1.12592663,3108.1,3107.9,0.00284212]
[1642566096578,1.12592663,3108.1,3108.0,2.73633217]
[1642566096884,1.6092027,3108.2,3108.0,5.43633217]
[1642566097114,1.6092027,3108.2,3108.1,2.73405847]
[1642566097317,0.8046027,3108.2,3108.1,3.73405847]
[1642566098119,0.5095027,3108.2,3108.1,3.73405847]
[1642566103168,0.2172027,3108.2,3108.1,3.73405847]
[1642566105719,0.2172027,3108.2,3108.0,0.0022737]
[1642566105921,1.0218427,3108.2,3108.0,0.0022737]
[1642566106120,1.0218427,3108.2,3107.7,0.00397897]
[1642566106322,1.0218427,3108.2,3107.4,0.00568424]
[1642566106520,1.27750246,3107.5,3107.4,0.00568424]
[1642566106719,1.27750246,3107.5,3107.2,0.00682109]
[1642566107323,1.27750246,3107.5,3107.1,0.00738951]
[1642566107520,1.27750246,3107.5,3107.0,0.00795793]
[1642566107720,1.27750246,3107.5,3107.1,0.00738951]
[1642566107919,2.08236246,3107.5,3107.0,0.00795793]
[1642566108121,2.414386,3107.6,3107.0,0.00795793]
[1642566108365,2.115186,3107.6,3107.1,1.63268121]
[1642566108563,1.310396,3107.6,3107.1,2.93268121]
[1642566108767,1.310396,3107.6,3107.2,0.00682109]
[1642566108964,0.804786,3107.6,3107.2,0.00682109]
[1642566110567,1.609556,3107.6,3107.2,0.00682109]
[1642566112010,0.804786,3107.6,3107.2,0.00682109]
[1642566112617,1.609576,3107.6,3107.2,0.00682109]
[1642566113014,1.909576,3107.6,3107.2,0.00682109]
[1642566113416,2.419366,3107.6,3107.2,0.00682109]
[1642566113617,2.419366,3107.6,3107.1,1.63268121]
[1642566113816,0.00170527,3107.5,3107.1,1.63268121]
[1642566114115,0.00170527,3107.5,3107.0,1.0]
[1642566114116,0.00113685,3107.4,3107.0,1.0]
[1642566114318,0.8048225,3107.3,3106.9,2.82861736]
[1642566114517,0.8048225,3107.3,3106.9,1.0]
[1642566114715,0.8048225,3107.3,3107.0,0.00113684]
[1642566114916,0.8048225,3107.3,3106.9,1.0]
[1642566115120,0.8048225,3107.3,3106.8,2.1833]
[1642566115121,0.00113685,3107.2,3106.8,2.1833]
[1642566115317,0.00113685,3107.2,3106.8,1.0]
[1642566115519,0.00113685,3107.2,3106.7,1.16067]
[1642566115786,0.8048172,3107.1,3106.7,2.97415567]
[1642566115980,1.99433601,3107.1,3106.8,0.00113685]
[1642566116180,1.99433601,3107.1,3106.7,3.22529252]
[1642566116381,4.40882681,3107.1,3106.7,3.22529252]
[1642566116585,0.03492016,3107.1,3106.9,6.45]
[1642566116782,1.6096344,3107.2,3106.9,8.25488974]
[1642566116990,1.6096344,3107.2,3107.0,1.0]
[1642566117382,0.8048172,3107.1,3107.0,1.0]
[1642566117584,0.8048172,3107.1,3107.0,2.79890109]
[1642566118484,0.5124172,3107.1,3107.0,2.79890109]
[1642566119717,0.5124172,3107.1,3107.0,1.3]
[1642566119920,0.5124172,3107.1,3106.5,4.62961622]
[1642566120122,0.5124172,3107.1,3106.5,3.62961622]
[1642566120320,0.5124172,3107.1,3106.6,0.0022737]
[1642566120718,0.5124172,3107.1,3106.5,0.00284212]
[1642566120919,0.8049606,3107.0,3106.4,0.00341054]
[1642566121220,0.80495,3106.9,3106.4,0.00341054]
[1642566122119,0.8049378,3106.8,3106.4,0.00341054]
[1642566122321,0.8049378,3106.8,3106.3,1.00397897]
[1642566122322,1.6098778,3106.8,3106.3,1.00397897]
[1642566122518,1.6098778,3106.8,3106.3,2.80372548]
[1642566122720,1.6098778,3106.8,3106.4,2.45172676]
[1642566122920,0.8049378,3106.8,3106.4,2.45172676]
[1642566123125,3.6739,3107.3,3106.6,1.57851724]
[1642566123126,0.8047777,3107.0,3106.6,1.57851724]
[1642566123375,0.8047777,3107.0,3106.7,1.57851724]
[1642566123674,0.5115777,3107.0,3106.8,1.57965409]
[1642566123876,1.3163877,3107.0,3106.8,1.57965409]
[1642566124076,1.3163877,3107.0,3106.8,0.00113685]
[1642566124881,1.3163877,3107.0,3106.7,0.00170527]
[1642566125879,1.3163877,3107.0,3106.7,1.58022251]
[1642566126178,1.3163877,3107.0,3106.8,0.00113685]
[1642566126580,1.3163877,3107.0,3106.8,2.73585444]
[1642566126780,1.3163877,3107.0,3106.9,2.73471759]
[1642566127039,1.3163877,3107.0,3106.8,0.00113685]
[1642566127639,1.3163877,3107.0,3106.7,0.00170527]
[1642566128544,1.3163877,3107.0,3106.7,2.73642286]
[1642566128746,1.60979,3106.9,3106.7,2.73642286]
[1642566128945,1.60979,3106.9,3106.8,0.00113685]
[1642566129165,1.0159877,3107.0,3106.8,0.00113685]
[1642566129951,2.10453273,3107.0,3106.8,0.00113685]
[1642566130348,4.51066,3106.9,3106.8,0.00113685]
[1642566130552,5.7551909,3106.8,3106.1,2.60492286]
[1642566130787,0.80519,3106.4,3105.7,1.57851724]
[1642566130980,0.80519,3106.4,3106.2,0.00284212]
[1642566131379,0.80519,3106.4,3105.7,1.58420148]
[1642566131582,0.80519,3106.4,3105.8,0.00511581]
[1642566131981,0.80513,3106.2,3105.8,0.00511581]
[1642566132184,0.8051691,3106.3,3105.7,1.58420148]
[1642566132379,2.4155991,3106.3,3105.7,0.00568424]
[1642566132578,0.02594534,3106.2,3105.8,0.00511581]
[1642566132777,0.02594534,3106.2,3105.7,0.00568424]
[1642566133177,2.7155991,3106.3,3105.7,0.00568424]
[1642566133378,0.80515,3106.2,3105.6,0.00625266]
[1642566133584,2.33678738,3105.9,3105.6,0.00625266]
[1642566133780,2.34368738,3105.9,3105.6,0.00625266]
[1642566134381,1.61737,3105.9,3105.5,1.00682108]
[1642566134629,1.61044,3105.8,3105.6,0.00625266]
[1642566134827,1.6173869,3105.9,3105.8,2.76639522]
[1642566135229,1.6173869,3105.9,3105.8,2.77151103]
[1642566135429,1.6173869,3105.9,3105.8,4.67514984]
[1642566135430,0.3,3105.9,3105.8,4.67514984]
[1642566135628,0.80502,3106.2,3105.8,4.67514984]
[1642566135934,1.60993,3106.6,3105.9,1.58306463]
[1642566136132,1.60993,3106.6,3106.0,3.35180555]
[1642566136327,1.60993,3106.6,3106.0,3.35578452]
[1642566136528,1.60993,3106.6,3106.1,0.00341054]
[1642566136529,0.80495,3106.5,3106.1,0.00341054]
[1642566136729,0.80509,3106.4,3106.1,0.00341054]
[1642566136931,2.4152924,3106.4,3105.9,1.00454739]
[1642566137128,2.4152924,3106.4,3106.0,0.00397897]
[1642566137728,0.80517,3106.3,3106.0,0.00397897]
[1642566137929,1.61027,3106.2,3106.0,0.00397897]
[1642566138379,3.2205183,3106.2,3105.9,0.00454739]
[1642566138980,2.9213183,3106.2,3105.9,0.00454739]
[1642566139380,3.7264683,3106.2,3105.9,0.00454739]
[1642566139784,2.9213183,3106.2,3105.9,0.00454739]
[1642566140483,0.80501,3106.2,3105.9,1.82490476]
[1642566140682,0.804932,3106.4,3105.9,1.82490476]
[1642566140890,0.804932,3106.4,3106.0,0.05146654]
[1642566141288,8.83553684,3107.2,3106.1,0.00341054]
[1642566141683,0.00227369,3107.1,3106.0,1.34634531]
[1642566141884,0.00227369,3107.1,3106.1,1.81322207]
[1642566141885,0.80493,3106.8,3106.1,1.81322207]
[1642566142123,0.80493,3106.8,3106.1,1.81663261]
[1642566142421,0.80493,3106.8,3106.1,2.81663261]
[1642566142622,0.8048975,3106.7,3106.1,2.81663261]
[1642566143524,0.80494,3106.6,3106.1,2.81663261]
[1642566143929,0.8049492,3106.5,3106.1,2.81663261]
[1642566144124,0.5064492,3106.5,3106.1,2.81663261]
[1642566144525,1.3113992,3106.5,3106.1,0.00341054]
[1642566144726,1.6101328,3106.4,3106.1,0.00341054]
[1642566145126,1.6101328,3106.4,3106.2,0.02056674]
[1642566145528,1.6101328,3106.4,3106.3,0.0022737]
[1642566146376,5.75,3106.3,3105.8,2.76639522]
[1642566146587,1.6104515,3106.2,3105.8,2.76639522]
[1642566146776,4.0264115,3106.2,3105.9,0.00227369]
[1642566147575,3.00026518,3106.1,3105.9,0.00227369]
[1642566147778,3.80552518,3106.1,3105.8,2.76639522]
[1642566147974,3.00026518,3106.1,3105.8,2.76639522]
[1642566148175,3.80555518,3106.1,3105.8,2.76639522]
[1642566148375,0.8053632,3105.7,3104.8,1.57851724]
[1642566148576,0.8053632,3105.7,3104.8,2.57851724]
[1642566148776,0.80538,3105.5,3104.9,0.00568424]
[1642566148977,1.10538,3105.5,3104.9,0.00568424]
[1642566149180,0.51229,3105.4,3104.9,0.00568424]
[1642566149376,0.51229,3105.4,3104.8,0.00625266]
[1642566150328,0.51229,3105.4,3104.8,1.5847699]
[1642566150524,0.51229,3105.4,3104.9,0.3]
[1642566150725,0.51229,3105.4,3105.0,2.73595527]
[1642566150926,0.51229,3105.4,3105.1,2.73595527]
[1642566151129,0.51229,3105.4,3105.1,2.74050266]
[1642566151325,0.51229,3105.4,3105.2,2.73993424]
[1642566151528,0.51229,3105.4,3105.3,2.73595527]
[1642566151731,3.45200575,3105.5,3105.3,2.73936581]
[1642566151927,3.45200575,3105.5,3105.4,2.73595527]
[1642566152229,0.80545,3105.3,3104.6,1.1721]
[1642566152429,0.80548,3105.2,3104.5,2.0]
[1642566152628,0.80548,3105.2,3104.7,0.00397896]
[1642566152929,0.80548,3105.2,3104.4,0.00568423]
[1642566153372,1.6109906,3105.0,3104.3,3.5847699]
[1642566153573,0.80553,3104.8,3104.4,0.00568423]
[1642566153973,0.80554,3104.9,3104.8,1.61105999]
[1642566154378,0.50634,3104.9,3104.8,1.61447053]
[1642566154575,2.1174,3104.9,3104.8,1.61447053]
[1642566155478,3.2221153,3105.0,3104.8,1.61447053]
[1642566155479,0.80553,3105.0,3104.8,1.61447053]
[1642566155879,0.80553,3105.0,3104.9,1.85880184]
[1642566156081,0.80528,3105.3,3104.9,2.85880184]
[1642566156382,0.80528,3105.3,3105.0,0.00227369]
[1642566157031,0.3,3105.2,3105.0,0.00227369]
[1642566159027,0.8052,3106.0,3105.0,0.00227369]
[1642566159332,0.00284212,3105.9,3105.2,18.58662196]
[1642566159637,3.7117,3106.8,3105.4,0.09009598]
[1642566159832,3.7117,3106.8,3105.6,1.57851724]
[1642566159833,0.00341054,3106.0,3105.6,1.57851724]
[1642566160031,0.80491,3106.6,3105.7,4.94485046]
[1642566160231,0.80491,3106.6,3105.9,0.8049]
[1642566160431,0.00341054,3106.5,3105.8,1.0]
[1642566160632,0.00341054,3106.5,3105.8,0.464]
[1642566160877,0.00284212,3106.4,3105.8,0.464]
[1642566161077,0.80787212,3106.4,3105.8,2.2891714]
[1642566161278,0.80787212,3106.4,3105.8,0.464]
[1642566161279,0.00227369,3106.3,3105.8,0.464]
[1642566161487,1.36992205,3105.9,3105.7,0.00113685]
[1642566161684,1.27697344,3106.1,3105.7,0.00113685]
[1642566161881,1.27697344,3106.1,3105.1,0.00454739]
[1642566162090,1.27697344,3106.1,3105.0,0.00511581]
[1642566162289,1.27697344,3106.1,3105.1,0.00454739]
[1642566162485,0.80536,3105.7,3105.0,2.00511581]
[1642566162688,0.8053377,3105.6,3105.0,2.00511581]
[1642566162886,0.8053377,3105.6,3105.1,0.00454739]
[1642566163096,0.3,3105.5,3105.1,0.00454739]
[1642566163285,0.3,3105.5,3105.0,0.00511581]
[1642566163486,0.80535,3105.4,3105.0,0.00511581]
[1642566164531,0.80535,3105.3,3104.9,0.00568424]
[1642566164725,1.6107,3105.3,3104.9,0.00568424]
[1642566165126,0.80535,3105.3,3104.9,0.00568424]
[1642566167329,1.1052,3105.5,3105.1,0.05869292]
[1642566167531,1.1052,3105.5,3105.2,2.73559707]
[1642566167728,1.1052,3105.5,3105.2,2.73957604]
[1642566167928,1.1052,3105.5,3105.3,2.73900761]
[1642566168130,4.3962,3106.1,3105.4,4.64901988]
[1642566168131,3.9322,3106.1,3105.4,4.64901988]
[1642566168385,0.80509,3105.9,3105.5,2.73559707]
[1642566168582,0.80509,3105.9,3105.6,2.73559707]
[1642566168882,0.80509,3105.9,3105.7,2.73673392]
[1642566169082,2.4155751,3105.9,3105.7,0.00113685]
[1642566169585,0.80535,3105.6,3105.1,0.00454739]
[1642566169785,0.80535,3105.5,3105.2,2.73544609]
[1642566170188,0.80535,3105.5,3105.3,0.00341054]
[1642566170385,0.80535,3105.5,3105.3,2.73885663]
[1642566170584,0.80535,3105.5,3105.4,2.73544609]
[1642566170785,0.80535,3105.5,3105.4,2.73828821]
[1642566171184,0.80535,3105.5,3105.4,0.00284212]
[1642566171386,2.4161,3105.5,3105.4,0.00284212]
[1642566171586,2.4161,3105.5,3105.1,0.00454739]
[1642566171785,1.61072,3105.4,3105.2,2.73544609]
[1642566172228,1.61072,3105.4,3105.3,0.00341054]
[1642566172442,2.4161,3105.5,3105.3,2.73885663]
[1642566172628,2.4161,3105.5,3105.4,2.73544609]
[1642566172832,2.4161,3105.5,3105.4,2.73828821]
[1642566173228,2.4161,3105.5,3105.4,0.00284212]
[1642566173428,1.61071,3105.5,3105.4,0.00284212]
[1642566173629,0.80532,3105.4,3105.1,0.00454739]
[1642566173828,0.80532,3105.4,3105.2,2.73544609]
[1642566174228,0.80532,3105.4,3105.3,0.00341054]
[1642566174628,0.50622,3105.4,3105.3,0.00341054]
[1642566174828,0.50622,3105.4,3105.0,0.00511581]
[1642566175030,0.50622,3105.4,3105.1,2.73544609]
[1642566175532,0.50622,3105.4,3105.2,0.00397897]
[1642566175773,2.41608,3105.5,3105.3,2.73544609]
[1642566175973,2.41608,3105.5,3105.4,2.73544609]
[1642566176171,2.41608,3105.5,3105.4,0.00284212]
[1642566176581,2.41608,3105.5,3105.1,2.73999348]
[1642566176779,4.0269147,3105.5,3105.2,2.73544609]
[1642566176977,4.0269147,3105.5,3105.2,2.73942506]
[1642566177176,4.0269147,3105.5,3105.3,2.73885663]
[1642566177376,1.31910426,3105.4,3105.3,0.00341054]
[1642566177575,2.92994426,3105.4,3104.8,1.61105999]
[1642566177777,2.4163405,3105.3,3104.8,1.61105999]
[1642566177984,1.9109167,3105.2,3104.8,1.61105999]
[1642566178578,2.2109167,3105.2,3104.8,1.61105999]
[1642566178776,3.0164067,3105.2,3104.8,1.61105999]
[1642566178983,2.7164067,3105.2,3104.8,1.61105999]
[1642566179178,0.80551,3105.1,3104.8,1.61105999]
[1642566179543,3.25393259,3105.0,3104.8,1.61105999]
[1642566179735,4.05954489,3105.0,3104.8,1.61105999]
[1642566179935,3.75194489,3105.0,3104.8,1.61105999]
[1642566180138,1.16535102,3104.9,3104.0,1.57851724]
[1642566180336,0.80564,3104.7,3103.9,1.57851724]
[1642566180536,1.61126,3104.5,3104.1,0.01023162]
[1642566180747,0.8056174,3104.4,3104.1,0.01023162]
[1642566180938,0.80564,3104.5,3104.4,1.6112348]
[1642566181342,0.80564,3104.5,3104.4,1.61976115]
[1642566181541,1.61126,3104.5,3104.4,1.61976115]
[1642566182439,3.154236,3104.5,3104.4,1.61976115]
[1642566184470,1.61126,3104.5,3104.4,1.61976115]
[1642566185082,1.31514,3104.6,3104.4,1.61976115]
[1642566185477,1.31514,3104.6,3104.5,0.00795793]
[1642566186481,1.31514,3104.6,3104.4,1.56919273]
[1642566188122,0.80561,3104.7,3104.4,1.56919273]
[1642566188321,0.80561,3104.7,3104.5,2.0]
[1642566188524,0.80561,3104.7,3104.4,3.14770997]
[1642566190128,0.13819997,3105.4,3104.5,1.57851724]
[1642566190326,0.50194,3105.0,3104.6,2.11655856]
[1642566190524,0.50194,3105.0,3104.6,3.62763384]
[1642566190778,0.50194,3105.0,3104.6,2.0491166]
[1642566190779,0.00227369,3104.9,3104.6,2.0491166]
[1642566190969,0.00227369,3104.9,3104.6,1.57851724]
[1642566191175,0.00170527,3104.8,3104.4,3.14770997]